[Event "26th OIBM 2023"]
[Site "Gmund am Tegernsee"]
[Date "2023.11.04"]
[Round "8.13"]
[White "Ghazarian, Kirk"]
[Black "Kurmangaliyeva, Liya"]
[Result "0-1"]
[ECO "A13"]
[WhiteElo "2473"]
[BlackElo "2236"]
[Annotator "ChessBase"]
[PlyCount "156"]
[EventDate "2023.10.04"]
[EventType "swiss"]
[EventCountry "GER"]
[SourceTitle "playchess.com"]
[Source "ChessBase"]
[SourceQuality "1"]
[TimeControl "40/5400+30:1800+30"]

1. c4 {[%emt 0:01:39]} e6 {[%emt 0:00:23]} 2. g3 {[%emt 0:00:33]} d5 {[%emt 0:00:39]} 3. Bg2 {[%emt 0:00:06]} Nf6 {[%emt 0:00:13]} 4. Nf3 {[%emt 0:00:47]} dxc4 {[%emt 0:00:58]} 5. Qa4+ {[%emt 0:00:05]} c6 {[%emt 0:00:22]} 6. Qxc4 {[%emt 0:00:09]} b5 {[%emt 0:00:32]} 7. Qc2 {[%emt 0:00:08]} Bb7 {[%emt 0:01:02]} 8. O-O {[%emt 0:03:16]} Nbd7 {[%emt 0:01:18]} 9. b3 {[%emt 0:00:26]} Be7 {[%emt 0:05:25]} 10. Bb2 {[%emt 0:00:09]} O-O {[%emt 0:02:48]} 11. d3 {[%emt 0:00:56]} c5 {[%emt 0:11:08]} 12. Nbd2 {[%emt 0:00:18]} Qc7 {[%emt 0:03:59]} 13. Rac1 {[%emt 0:02:44]} Rac8 {[%emt 0:02:20]} 14. Qb1 {[%emt 0:00:56]} Qb8 {[%emt 0:06:04]} 15. Qa1 {[%emt 0:00:40]} a6 {[%emt 0:02:22]} 16. Rfd1 {[%emt 0:01:15]} Bc6 {[%emt 0:06:14]} 17. Nf1 {[%emt 0:03:15]} Rfd8 {[%emt 0:07:40]} 18. e4 {[%emt 0:02:26]} Qa8 {[%emt 0:09:38]} 19. Ne3 {[%emt 0:00:56]} a5 {[%emt 0:00:44]} 20. Ne5 {[%emt 0:24:49]} Nxe5 {[%emt 0:01:06]} 21. Bxe5 {[%emt 0:00:02]} a4 {[%emt 0:00:27]} 22. Qb2 {[%emt 0:00:27]} Qa6 {[%emt 0:05:42]} 23. Bf1 {[%emt 0:02:37]} Ra8 {[%emt 0:04:40]} 24. Qc3 {[%emt 0:04:26]} Rdc8 {[%emt 0:05:07]} 25. h4 {[%emt 0:03:49]} Qb7 {[%emt 0:05:48]} 26. Be2 {[%emt 0:05:28]} Ne8 {[%emt 0:02:57]} 27. Qc2 {[%emt 0:01:42]} axb3 {[%emt 0:04:20]} 28. axb3 {[%emt 0:00:03]} Ra3 {[%emt 0:00:07]} 29. Bb2 {[%emt 0:05:00]} Ra2 {[%emt 0:00:35]} 30. Qb1 {[%emt 0:01:18]} Rca8 {[%emt 0:00:55]} 31. Bf1 {[%emt 0:03:54]} Nf6 {[%emt 0:00:50]} 32. Rc2 {[%emt 0:01:30]} Nd7 {[%emt 0:01:07]} 33. Bc3 {[%emt 0:02:10]} R2a3 {[%emt 0:01:28]} 34. Rcc1 {[%emt 0:15:14]} b4 {[%emt 0:01:40]} 35. Bd2 {[%emt 0:00:22]} Bf6 {[%emt 0:00:44]} 36. Nc4 {[%emt 0:00:28]} Ra2 {[%emt 0:01:46]} 37. Be3 {[%emt 0:00:57]} Bc3 {[%emt 0:02:10]} 38. Bd2 {[%emt 0:02:24]} Bd4 {[%emt 0:00:04]} 39. Be3 {[%emt 0:00:09]} Bc3 {[%emt 0:00:07]} 40. Bd2 {[%emt 0:00:38]} Bd4 {[%emt 0:01:44]} 41. Be3 {[%emt 0:31:31]} Ne5 {[%emt 0:08:51]} 42. Bg2 {[%emt 0:00:00]} Nxc4 {[%emt 0:04:59]} 43. Bxd4 {[%emt 0:00:00]} Nd2 {[%emt 0:00:37]} 44. Rxd2 {[%emt 0:00:00]} Rxd2 {[%emt 0:00:05]} 45. Be3 {[%emt 0:00:00]} Rda2 {[%emt 0:00:34]} 46. Bxc5 {[%emt 0:00:00]} e5 {[%emt 0:05:00]} 47. Kh2 {[%emt 0:00:00]} Bd7 {[%emt 0:02:20]} 48. Rc4 {[%emt 0:00:00]} Be6 {[%emt 0:02:45]} 49. Rxb4 {[%emt 0:00:00]} Qc7 {[%emt 0:02:40]} 50. Bb6 {[%emt 0:00:00]} Qc3 {[%emt 0:01:38]} 51. Ra4 {[%emt 0:00:00]} Bxb3 {[%emt 0:07:11]} 52. Qxa2 {[%emt 0:00:00]} Rxa4 {[%emt 0:00:17]} 53. Qe2 {[%emt 0:00:00]} Ra2 {[%emt 0:00:46]} 54. Qg4 {[%emt 0:00:00]} Be6 {[%emt 0:00:14]} 55. Qg5 {[%emt 0:00:00]} f6 {[%emt 0:00:37]} 56. Qh5 {[%emt 0:00:00]} Qc8 {[%emt 0:00:17]} 57. Qd1 {[%emt 0:00:00]} Qd7 {[%emt 0:01:22]} 58. Be3 {[%emt 0:00:00]} Ra4 {[%emt 0:00:47]} 59. Qb1 {[%emt 0:00:00]} Ra8 {[%emt 0:00:18]} 60. Bf1 {[%emt 0:00:00]} Bg4 {[%emt 0:00:28]} 61. Qb2 {[%emt 0:05:28]} Rd8 {[%emt 0:00:20]} 62. Qc3 {[%emt 0:00:18]} h6 {[%emt 0:00:29]} 63. Bb6 {[%emt 0:00:48]} Rc8 {[%emt 0:00:09]} 64. Qd2 {[%emt 0:00:26]} Kh8 {[%emt 0:00:49]} 65. Be3 {[%emt 0:00:17]} Re8 {[%emt 0:01:25]} 66. Qc1 {[%emt 0:01:25]} Kh7 {[%emt 0:00:33]} 67. Qd2 {[%emt 0:00:01]} Rd8 {[%emt 0:00:18]} 68. Bb6 {[%emt 0:00:38]} Rb8 {[%emt 0:00:06]} 69. Be3 {[%emt 0:00:05]} Rb1 {[%emt 0:00:37]} 70. Be2 {[%emt 0:00:42]} Bxe2 {[%emt 0:00:29]} 71. Qxe2 {[%emt 0:00:01]} Rb3 {[%emt 0:00:05]} 72. Qf3 {[%emt 0:00:19]} Rxd3 {[%emt 0:00:12]} 73. Kg2 {[%emt 0:00:06]} Ra3 {[%emt 0:00:29]} 74. h5 {[%emt 0:00:32]} Kg8 {[%emt 0:00:21]} 75. Qe2 {[%emt 0:00:45]} Ra4 {[%emt 0:01:15]} 76. Qc2 {[%emt 0:00:17]} Kh7 {[%emt 0:00:07]} 77. Kf3 {[%emt 0:00:23]} f5 {[%emt 0:01:08]} 78. exf5 {[%emt 0:00:53]} Qd5+ {[%emt 0:00:09]} 0-1

[Event "26th OIBM 2023"]
[Site "Gmund am Tegernsee"]
[Date "2023.11.04"]
[Round "8.14"]
[White "Meins, Gerlef"]
[Black "Brandt, Sebastian"]
[Result "1-0"]
[ECO "E04"]
[WhiteElo "2412"]
[BlackElo "2188"]
[Annotator "ChessBase"]
[PlyCount "99"]
[EventDate "2023.10.04"]
[EventType "swiss"]
[EventCountry "GER"]
[SourceTitle "playchess.com"]
[Source "ChessBase"]
[SourceQuality "1"]
[TimeControl "40/5400+30:1800+30"]

1. d4 {[%emt 0:00:06]} d5 {[%emt 0:00:12]} 2. c4 {[%emt 0:00:12]} e6 {[%emt 0:00:07]} 3. Nf3 {[%emt 0:00:08]} Nf6 {[%emt 0:00:23]} 4. g3 {[%emt 0:00:19]} dxc4 {[%emt 0:01:16]} 5. Bg2 {[%emt 0:00:26]} Bd7 {[%emt 0:00:54]} 6. Ne5 {[%emt 0:03:12]} Bc6 {[%emt 0:00:43]} 7. Nxc6 {[%emt 0:00:37]} Nxc6 {[%emt 0:00:10]} 8. O-O {[%emt 0:04:07]} Qd7 {[%emt 0:01:06]} 9. e3 {[%emt 0:02:05]} O-O-O {[%emt 0:01:24]} 10. Qa4 {[%emt 0:08:09]} Nd5 {[%emt 0:01:59]} 11. Qxc4 {[%emt 0:01:00]} h5 {[%emt 0:01:09]} 12. Nd2 {[%emt 0:20:32]} h4 {[%emt 0:07:24]} 13. Nb3 {[%emt 0:07:24]} hxg3 {[%emt 0:07:37]} 14. hxg3 {[%emt 0:00:22]} f5 {[%emt 0:02:35]} 15. e4 {[%emt 0:12:52]} Nb6 {[%emt 0:10:44]} 16. Qe2 {[%emt 0:05:33]} g6 {[%emt 0:11:32]} 17. Bg5 {[%emt 0:12:59]} Re8 {[%emt 0:13:00]} 18. Bf6 {[%emt 0:03:17]} Rh5 {[%emt 0:02:09]} 19. Rac1 {[%emt 0:02:43]} Qf7 {[%emt 0:07:38]} 20. e5 {[%emt 0:01:20]} Nb8 {[%emt 0:07:27]} 21. Na5 {[%emt 0:02:28]} c6 {[%emt 0:01:25]} 22. a3 {[%emt 0:02:14]} Nd5 {[%emt 0:00:51]} 23. b4 {[%emt 0:00:56]} Qc7 {[%emt 0:02:50]} 24. Qd2 {[%emt 0:03:21]} a6 {[%emt 0:03:56]} 25. Bf3 {[%emt 0:02:07]} Nxf6 {[%emt 0:05:13]} 26. exf6 {[%emt 0:00:14]} Rh7 {[%emt 0:00:30]} 27. Qg5 {[%emt 0:02:52]} Bh6 {[%emt 0:04:26]} 28. Qxg6 {[%emt 0:00:09]} Reh8 {[%emt 0:01:59]} 29. Rce1 {[%emt 0:00:37]} Qd6 {[%emt 0:01:47]} 30. f7 {[%emt 0:00:18]} Nd7 {[%emt 0:01:19]} 31. Rxe6 {[%emt 0:01:09]} Qxd4 {[%emt 0:00:57]} 32. Re8+ {[%emt 0:01:40]} Kc7 {[%emt 0:00:02]} 33. Nxc6 {[%emt 0:00:22]} Qc3 {[%emt 0:01:00]} 34. Qxf5 {[%emt 0:00:31]} bxc6 {[%emt 0:00:28]} 35. Rd1 {[%emt 0:00:48]} Bd2 {[%emt 0:01:09]} 36. Re7 {[%emt 0:00:25]} Qd4 {[%emt 0:00:36]} 37. Rxd7+ {[%emt 0:00:48]} Qxd7 {[%emt 0:00:09]} 38. f8=Q {[%emt 0:00:28]} Rxf8 {[%emt 0:00:34]} 39. Qxf8 {[%emt 0:00:02]} Rf7 {[%emt 0:00:32]} 40. Qc5 {[%emt 0:00:43]} Rxf3 {[%emt 0:00:44]} 41. Qa7+ {[%emt 0:30:27]} Kd8 {[%emt 0:02:38]} 42. Qxd7+ {[%emt 0:00:00]} Kxd7 {[%emt 0:00:02]} 43. Rxd2+ {[%emt 0:00:00]} Kc7 {[%emt 0:00:27]} 44. Ra2 {[%emt 0:00:00]} Kb6 {[%emt 0:00:53]} 45. Kg2 {[%emt 0:00:00]} Rd3 {[%emt 0:01:46]} 46. f4 {[%emt 0:00:00]} Kb5 {[%emt 0:00:20]} 47. f5 {[%emt 0:00:00]} Ka4 {[%emt 0:00:50]} 48. f6 {[%emt 0:00:00]} Rd8 {[%emt 0:02:04]} 49. f7 {[%emt 0:00:00]} Rf8 {[%emt 0:00:23]} 50. Rf2 {[%emt 0:00:00]} 1-0

[Event "26th OIBM 2023"]
[Site "Gmund am Tegernsee"]
[Date "2023.11.04"]
[Round "8.15"]
[White "Stricker, Florian"]
[Black "Colpe, Malte"]
[Result "1/2-1/2"]
[ECO "B23"]
[WhiteElo "2238"]
[BlackElo "2386"]
[Annotator "ChessBase"]
[PlyCount "82"]
[EventDate "2023.10.04"]
[EventType "swiss"]
[EventCountry "GER"]
[SourceTitle "playchess.com"]
[Source "ChessBase"]
[SourceQuality "1"]
[TimeControl "40/5400+30:1800+30"]

1. e4 {[%emt 0:00:03]} c5 {[%emt 0:00:05]} 2. Nc3 {[%emt 0:00:05]} e6 {[%emt 0:00:05]} 3. Nge2 {[%emt 0:00:09]} Nf6 {[%emt 0:00:56]} 4. g3 {[%emt 0:00:12]} b5 {[%emt 0:02:32]} 5. Nxb5 {[%emt 0:22:34]} Nxe4 {[%emt 0:00:13]} 6. Bg2 {[%emt 0:00:28]} Bb7 {[%emt 0:00:07]} 7. O-O {[%emt 0:01:18]} Qb6 {[%emt 0:00:20]} 8. c4 {[%emt 0:17:18]} a6 {[%emt 0:06:00]} 9. Na3 {[%emt 0:16:43]} Nf6 {[%emt 0:01:22]} 10. Qb3 {[%emt 0:07:11]} Qxb3 {[%emt 0:01:15]} 11. axb3 {[%emt 0:00:05]} Bxg2 {[%emt 0:04:49]} 12. Kxg2 {[%emt 0:00:46]} Ra7 {[%emt 0:06:07]} 13. Nc2 {[%emt 0:11:42]} Rb7 {[%emt 0:02:58]} 14. Ra3 {[%emt 0:00:25]} d5 {[%emt 0:03:46]} 15. d3 {[%emt 0:04:19]} Bd6 {[%emt 0:03:18]} 16. Bg5 {[%emt 0:04:44]} d4 {[%emt 0:07:32]} 17. Nc1 {[%emt 0:03:44]} Nfd7 {[%emt 0:05:01]} 18. Bd2 {[%emt 0:02:20]} Ne5 {[%emt 0:02:49]} 19. b4 {[%emt 0:04:52]} cxb4 {[%emt 0:01:00]} 20. Ra4 {[%emt 0:00:07]} Nec6 {[%emt 0:07:33]} 21. Nb3 {[%emt 0:00:08]} e5 {[%emt 0:02:07]} 22. c5 {[%emt 0:00:42]} Be7 {[%emt 0:01:25]} 23. Nxb4 {[%emt 0:00:40]} Nxb4 {[%emt 0:00:23]} 24. Rxb4 {[%emt 0:00:04]} Rxb4 {[%emt 0:00:13]} 25. Bxb4 {[%emt 0:00:08]} Nc6 {[%emt 0:00:10]} 26. Ba3 {[%emt 0:00:54]} Kd7 {[%emt 0:03:01]} 27. Nd2 {[%emt 0:00:34]} Ke6 {[%emt 0:05:05]} 28. f4 {[%emt 0:00:26]} f6 {[%emt 0:00:44]} 29. Nc4 {[%emt 0:01:27]} Rb8 {[%emt 0:00:51]} 30. f5+ {[%emt 0:00:39]} Kf7 {[%emt 0:01:59]} 31. Kf3 {[%emt 0:00:21]} Rb5 {[%emt 0:07:17]} 32. Rc1 {[%emt 0:00:26]} Ke8 {[%emt 0:01:55]} 33. Ke4 {[%emt 0:00:35]} Kd7 {[%emt 0:01:34]} 34. Nb6+ {[%emt 0:00:32]} Kc7 {[%emt 0:01:00]} 35. g4 {[%emt 0:00:25]} a5 {[%emt 0:01:53]} 36. Rc4 {[%emt 0:00:46]} Bf8 {[%emt 0:01:21]} 37. h3 {[%emt 0:00:16]} h6 {[%emt 0:03:43]} 38. h4 {[%emt 0:00:26]} Kb7 {[%emt 0:00:56]} 39. Nd5 {[%emt 0:00:18]} Rb3 {[%emt 0:00:48]} 40. Nb6 {[%emt 0:00:34]} Be7 {[%emt 0:03:45]} 41. Rc2 {[%emt 0:03:14]} Bd8 {[%emt 0:01:01]} 1/2-1/2

[Event "26th OIBM 2023"]
[Site "Gmund am Tegernsee"]
[Date "2023.11.04"]
[Round "8.16"]
[White "Wacker, Peter"]
[Black "Meissner, Felix"]
[Result "0-1"]
[ECO "A45"]
[WhiteElo "2234"]
[BlackElo "2382"]
[Annotator "ChessBase"]
[PlyCount "68"]
[EventDate "2023.10.04"]
[EventType "swiss"]
[EventCountry "GER"]
[SourceTitle "playchess.com"]
[Source "ChessBase"]
[SourceQuality "1"]
[TimeControl "40/5400+30:1800+30"]

1. d4 {[%emt 0:00:04]} Nf6 {[%emt 0:00:17]} 2. Bf4 {[%emt 0:00:13]} c5 {[%emt 0:00:10]} 3. e3 {[%emt 0:00:19]} Qb6 {[%emt 0:00:34]} 4. Nc3 {[%emt 0:11:57]} e6 {[%emt 0:00:25]} 5. a3 {[%emt 0:10:54]} d5 {[%emt 0:00:39]} 6. dxc5 {[%emt 0:10:10]} Bxc5 {[%emt 0:06:14]} 7. Nf3 {[%emt 0:05:10]} Bd7 {[%emt 0:01:53]} 8. Rb1 {[%emt 0:06:15]} O-O {[%emt 0:03:03]} 9. Bd3 {[%emt 0:01:45]} Bc6 {[%emt 0:06:18]} 10. O-O {[%emt 0:04:57]} Be7 {[%emt 0:01:46]} 11. Ne5 {[%emt 0:03:51]} Nbd7 {[%emt 0:01:28]} 12. Nxc6 {[%emt 0:01:03]} bxc6 {[%emt 0:01:30]} 13. Na4 {[%emt 0:06:22]} Qd8 {[%emt 0:02:56]} 14. c4 {[%emt 0:02:12]} a5 {[%emt 0:08:00]} 15. h3 {[%emt 0:00:15]} Nb6 {[%emt 0:10:36]} 16. Nxb6 {[%emt 0:12:57]} Qxb6 {[%emt 0:00:02]} 17. b4 {[%emt 0:01:07]} axb4 {[%emt 0:00:49]} 18. axb4 {[%emt 0:00:02]} dxc4 {[%emt 0:00:54]} 19. Bxc4 {[%emt 0:00:09]} Rad8 {[%emt 0:06:27]} 20. Qb3 {[%emt 0:00:47]} Ne4 {[%emt 0:01:45]} 21. b5 {[%emt 0:06:01]} Nd2 {[%emt 0:00:35]} 22. Qc2 {[%emt 0:00:19]} Nxf1 {[%emt 0:03:38]} 23. Bxf1 {[%emt 0:00:32]} Rc8 {[%emt 0:01:10]} 24. Qe4 {[%emt 0:03:08]} cxb5 {[%emt 0:01:23]} 25. Bxb5 {[%emt 0:00:08]} Qc5 {[%emt 0:03:15]} 26. Bd3 {[%emt 0:01:41]} g6 {[%emt 0:01:24]} 27. Rb5 {[%emt 0:00:26]} Qc1+ {[%emt 0:02:15]} 28. Kh2 {[%emt 0:00:05]} Qc6 {[%emt 0:02:24]} 29. Qxc6 {[%emt 0:01:38]} Rxc6 {[%emt 0:00:06]} 30. Be4 {[%emt 0:00:04]} Ra6 {[%emt 0:01:02]} 31. Rb2 {[%emt 0:01:00]} Bd6 {[%emt 0:01:10]} 32. Bxd6 {[%emt 0:00:37]} Rxd6 {[%emt 0:00:01]} 33. f4 {[%emt 0:00:11]} Re8 {[%emt 0:03:08]} 34. Rb5 {[%emt 0:01:36]} h5 {[%emt 0:01:45]} 0-1

[Event "26th OIBM 2023"]
[Site "Gmund am Tegernsee"]
[Date "2023.11.04"]
[Round "8.17"]
[White "Hess, Max"]
[Black "Salzmann, Peter"]
[Result "1-0"]
[ECO "D78"]
[WhiteElo "2378"]
[BlackElo "2160"]
[Annotator "ChessBase"]
[PlyCount "47"]
[EventDate "2023.10.04"]
[EventType "swiss"]
[EventCountry "GER"]
[SourceTitle "playchess.com"]
[Source "ChessBase"]
[SourceQuality "1"]
[TimeControl "40/5400+30:1800+30"]

1. c4 {[%emt 0:00:03]} c6 {[%emt 0:00:29]} 2. Nf3 {[%emt 0:00:05]} d5 {[%emt 0:00:25]} 3. g3 {[%emt 0:00:07]} g6 {[%emt 0:02:27]} 4. Bg2 {[%emt 0:00:13]} Bg7 {[%emt 0:00:02]} 5. O-O {[%emt 0:00:15]} Nf6 {[%emt 0:04:59]} 6. b3 {[%emt 0:00:09]} Ne4 {[%emt 0:04:28]} 7. d4 {[%emt 0:00:05]} Be6 {[%emt 0:06:59]} 8. Bb2 {[%emt 0:08:54]} O-O {[%emt 0:06:14]} 9. Ne5 {[%emt 0:02:54]} Qc8 {[%emt 0:11:59]} 10. Qc2 {[%emt 0:12:41]} f6 {[%emt 0:20:17]} 11. Nd3 {[%emt 0:02:47]} Bh3 {[%emt 0:05:04]} 12. cxd5 {[%emt 0:05:37]} Bxg2 {[%emt 0:00:02]} 13. Kxg2 {[%emt 0:00:06]} cxd5 {[%emt 0:00:06]} 14. Rc1 {[%emt 0:02:03]} Nc6 {[%emt 0:03:17]} 15. f3 {[%emt 0:05:31]} Ng5 {[%emt 0:00:15]} 16. Qd2 {[%emt 0:13:32]} Qh3+ {[%emt 0:06:37]} 17. Kh1 {[%emt 0:03:54]} Rac8 {[%emt 0:00:07]} 18. Nf4 {[%emt 0:00:58]} Qd7 {[%emt 0:00:02]} 19. Nc3 {[%emt 0:00:55]} e6 {[%emt 0:01:44]} 20. Ba3 {[%emt 0:02:23]} Rfe8 {[%emt 0:00:01]} 21. Rc2 {[%emt 0:03:12]} Nf7 {[%emt 0:00:04]} 22. Rac1 {[%emt 0:03:05]} g5 {[%emt 0:00:07]} 23. Nh5 {[%emt 0:02:40]} Ne7 {[%emt 0:00:23]} 24. Bxe7 {[%emt 0:01:23]} 1-0

[Event "26th OIBM 2023"]
[Site "Gmund am Tegernsee"]
[Date "2023.11.04"]
[Round "8.18"]
[White "Manish Anto Cristiano F"]
[Black "Liepold, Stefan"]
[Result "1-0"]
[ECO "C96"]
[WhiteElo "2368"]
[BlackElo "2150"]
[Annotator "ChessBase"]
[PlyCount "67"]
[EventDate "2023.10.04"]
[EventType "swiss"]
[EventCountry "GER"]
[SourceTitle "playchess.com"]
[Source "ChessBase"]
[SourceQuality "1"]
[TimeControl "40/5400+30:1800+30"]

1. e4 {[%emt 0:00:04]} e5 {[%emt 0:00:12]} 2. Nf3 {[%emt 0:00:11]} Nc6 {[%emt 0:00:07]} 3. Bb5 {[%emt 0:00:39]} a6 {[%emt 0:00:11]} 4. Ba4 {[%emt 0:00:15]} Nf6 {[%emt 0:00:10]} 5. O-O {[%emt 0:00:13]} Be7 {[%emt 0:00:13]} 6. Re1 {[%emt 0:00:30]} b5 {[%emt 0:00:15]} 7. Bb3 {[%emt 0:00:09]} d6 {[%emt 0:00:14]} 8. c3 {[%emt 0:00:14]} O-O {[%emt 0:00:26]} 9. h3 {[%emt 0:00:12]} Na5 {[%emt 0:00:33]} 10. Bc2 {[%emt 1:33:03]} c5 {[%emt 1:33:09]} 11. d4 {[%emt 0:00:30]} Nd7 {[%emt 0:00:00]} 12. Nbd2 {[%emt 0:00:00]} Bb7 {[%emt 0:01:00]} 13. d5 {[%emt 0:00:00]} Nb6 {[%emt 0:00:30]} 14. b3 {[%emt 0:01:30]} f5 {[%emt 0:00:30]} 15. b4 {[%emt 0:00:30]} cxb4 {[%emt 0:00:00]} 16. cxb4 {[%emt 0:00:00]} Nac4 {[%emt 0:00:00]} 17. Nxc4 {[%emt 0:00:00]} bxc4 {[%emt 0:00:00]} 18. Be3 {[%emt 0:00:00]} f4 {[%emt 0:00:00]} 19. Bxb6 {[%emt 0:00:00]} Qxb6 {[%emt 0:00:00]} 20. Nd2 {[%emt 0:00:00]} Bh4 {[%emt 0:03:00]} 21. Qe2 {[%emt 0:00:00]} f3 {[%emt 0:00:00]} 22. Nxf3 Rxf3 {[%emt 0:00:00]} 23. gxf3 {[%emt 0:00:00]} Rf8 {[%emt 0:00:00]} 24. Kg2 {[%emt 0:00:00]} Bc8 {[%emt 0:00:00]} 25. Rh1 {[%emt 0:00:00]} Bd7 {[%emt 0:00:00]} 26. a4 {[%emt 0:00:00]} Qd8 {[%emt 0:00:00]} 27. Bd1 {[%emt 0:00:00]} c3 {[%emt 0:00:00]} 28. Qe3 {[%emt 0:00:00]} Rf6 {[%emt 0:00:00]} 29. Ra3 {[%emt 0:00:00]} Rg6+ {[%emt 0:00:00]} 30. Kf1 {[%emt 0:00:00]} c2 {[%emt 0:00:00]} 31. Bxc2 {[%emt 0:00:00]} Qc8 {[%emt 0:00:00]} 32. Rc3 Bxh3+ {[%emt 0:00:00]} 33. Ke1 {[%emt 0:00:00]} Qd7 {[%emt 0:00:00]} 34. f4 {[%emt 0:00:00]} 1-0

[Event "26th OIBM 2023"]
[Site "Gmund am Tegernsee"]
[Date "2023.11.04"]
[Round "8.19"]
[White "Boehmer, Christian"]
[Black "Besou, Hussain"]
[Result "0-1"]
[ECO "B13"]
[WhiteElo "2178"]
[BlackElo "2351"]
[Annotator "ChessBase"]
[PlyCount "52"]
[EventDate "2023.10.04"]
[EventType "swiss"]
[EventCountry "GER"]
[SourceTitle "playchess.com"]
[Source "ChessBase"]
[SourceQuality "1"]
[TimeControl "40/5400+30:1800+30"]

1. e4 {[%emt 0:00:03]} c6 {[%emt 0:00:17]} 2. d4 {[%emt 0:02:39]} d5 {[%emt 0:00:38]} 3. exd5 {[%emt 0:00:13]} cxd5 {[%emt 0:00:08]} 4. Nf3 {[%emt 0:00:04]} Nc6 {[%emt 0:01:05]} 5. Ne5 {[%emt 0:01:55]} Nf6 {[%emt 0:05:39]} 6. Bb5 {[%emt 0:02:16]} Qb6 {[%emt 0:01:27]} 7. Qe2 {[%emt 0:17:00]} a6 {[%emt 0:07:24]} 8. Ba4 {[%emt 0:03:17]} g6 {[%emt 0:03:35]} 9. O-O {[%emt 0:04:09]} Bg7 {[%emt 0:00:56]} 10. c3 {[%emt 0:10:37]} Be6 {[%emt 0:01:10]} 11. Nd2 {[%emt 0:02:49]} O-O {[%emt 0:04:30]} 12. Ndf3 {[%emt 0:05:17]} Ne4 {[%emt 0:14:51]} 13. Nd3 {[%emt 0:05:20]} Bf5 {[%emt 0:07:16]} 14. h3 {[%emt 0:07:20]} Rad8 {[%emt 0:08:38]} 15. Bf4 {[%emt 0:04:13]} f6 {[%emt 0:06:39]} 16. Bh2 {[%emt 0:03:05]} Kh8 {[%emt 0:05:56]} 17. Nh4 {[%emt 0:05:00]} Bd7 {[%emt 0:04:46]} 18. Bb3 {[%emt 0:00:34]} e6 {[%emt 0:00:44]} 19. f3 {[%emt 0:02:36]} Ng5 {[%emt 0:01:46]} 20. f4 {[%emt 0:00:46]} Ne4 {[%emt 0:00:17]} 21. f5 {[%emt 0:00:26]} exf5 {[%emt 0:00:59]} 22. Nf4 {[%emt 0:01:52]} Ne7 {[%emt 0:00:25]} 23. Nfxg6+ {[%emt 0:12:04]} Nxg6 {[%emt 0:02:00]} 24. Nxf5 {[%emt 0:03:59]} Bb5 {[%emt 0:01:14]} 25. Qg4 {[%emt 0:00:28]} Bxf1 {[%emt 0:01:18]} 26. Rxf1 {[%emt 0:00:02]} Nd2 {[%emt 0:00:45]} 0-1

[Event "26th OIBM 2023"]
[Site "Gmund am Tegernsee"]
[Date "2023.11.04"]
[Round "8.20"]
[White "Kerpe, Andreas"]
[Black "Reimann, Sebastian"]
[Result "0-1"]
[ECO "B26"]
[WhiteElo "2157"]
[BlackElo "2342"]
[Annotator "ChessBase"]
[PlyCount "52"]
[EventDate "2023.10.04"]
[EventType "swiss"]
[EventCountry "GER"]
[SourceTitle "playchess.com"]
[Source "ChessBase"]
[SourceQuality "1"]
[TimeControl "40/5400+30:1800+30"]

1. e4 {[%emt 0:00:03]} c5 {[%emt 0:00:16]} 2. Nc3 {[%emt 0:00:25]} Nc6 {[%emt 0:02:44]} 3. g3 {[%emt 0:00:07]} g6 {[%emt 0:00:10]} 4. Bg2 {[%emt 0:00:05]} Bg7 {[%emt 0:00:08]} 5. d3 {[%emt 0:00:02]} Rb8 {[%emt 0:01:17]} 6. Be3 {[%emt 0:00:56]} d6 {[%emt 0:00:08]} 7. Qd2 {[%emt 0:00:15]} b5 {[%emt 0:00:11]} 8. f4 {[%emt 0:00:10]} b4 {[%emt 0:01:27]} 9. Nd1 {[%emt 0:00:02]} a5 {[%emt 0:07:12]} 10. Rb1 {[%emt 0:05:46]} Nd4 {[%emt 0:04:14]} 11. Nf3 {[%emt 0:05:59]} Be6 {[%emt 0:07:06]} 12. c4 {[%emt 0:10:53]} bxc3 {[%emt 0:03:40]} 13. Nxc3 {[%emt 0:00:09]} Nxf3+ {[%emt 0:07:03]} 14. Bxf3 {[%emt 0:00:11]} Nf6 {[%emt 0:00:24]} 15. h3 {[%emt 0:08:06]} h5 {[%emt 0:03:58]} 16. Bg2 {[%emt 0:12:07]} O-O {[%emt 0:02:58]} 17. O-O {[%emt 0:05:52]} d5 {[%emt 0:06:00]} 18. exd5 {[%emt 0:03:17]} Nxd5 {[%emt 0:00:11]} 19. Bxc5 {[%emt 0:05:45]} Nb4 {[%emt 0:02:50]} 20. d4 {[%emt 0:04:30]} Bf5 {[%emt 0:11:59]} 21. Be4 {[%emt 0:02:03]} Bxh3 {[%emt 0:01:48]} 22. Rfe1 {[%emt 0:00:56]} Rc8 {[%emt 0:05:21]} 23. Bxb4 {[%emt 0:09:28]} Bxd4+ {[%emt 0:00:35]} 24. Kh2 {[%emt 0:02:26]} Bg1+ {[%emt 0:00:34]} 25. Rxg1 {[%emt 0:02:10]} Qxd2+ {[%emt 0:00:12]} 26. Kxh3 {[%emt 0:00:02]} axb4 {[%emt 0:01:02]} 0-1

[Event "26th OIBM 2023"]
[Site "Gmund am Tegernsee"]
[Date "2023.11.04"]
[Round "8.21"]
[White "Forchert, Martin"]
[Black "Cordes, Hans-Joerg"]
[Result "1/2-1/2"]
[ECO "B92"]
[WhiteElo "2317"]
[BlackElo "2146"]
[Annotator "ChessBase"]
[PlyCount "55"]
[EventDate "2023.10.04"]
[EventType "swiss"]
[EventCountry "GER"]
[SourceTitle "playchess.com"]
[Source "ChessBase"]
[SourceQuality "1"]
[TimeControl "40/5400+30:1800+30"]

1. e4 {[%emt 0:00:03]} c5 {[%emt 0:00:09]} 2. Nf3 {[%emt 0:00:10]} d6 {[%emt 0:00:11]} 3. d4 {[%emt 0:00:20]} cxd4 {[%emt 0:00:14]} 4. Nxd4 {[%emt 0:00:06]} Nf6 {[%emt 0:00:07]} 5. Nc3 {[%emt 0:00:07]} a6 {[%emt 0:00:04]} 6. Be2 {[%emt 0:01:07]} e5 {[%emt 0:00:14]} 7. Nb3 {[%emt 0:00:19]} Be7 {[%emt 0:00:20]} 8. Bg5 {[%emt 0:00:49]} Be6 {[%emt 0:01:11]} 9. Bxf6 {[%emt 0:00:10]} Bxf6 {[%emt 0:00:17]} 10. Qd3 {[%emt 0:00:09]} O-O {[%emt 0:07:12]} 11. Rd1 {[%emt 0:02:48]} Be7 {[%emt 0:04:17]} 12. Nd5 {[%emt 0:01:23]} Bxd5 {[%emt 0:01:14]} 13. Qxd5 {[%emt 0:00:17]} Qc7 {[%emt 0:00:15]} 14. Bg4 {[%emt 0:31:43]} Nc6 {[%emt 0:11:40]} 15. c3 {[%emt 0:00:07]} Rad8 {[%emt 0:03:05]} 16. O-O {[%emt 0:00:16]} Bg5 {[%emt 0:01:51]} 17. Na1 {[%emt 0:06:11]} g6 {[%emt 0:06:25]} 18. Nc2 {[%emt 0:03:21]} Kg7 {[%emt 0:00:16]} 19. Qd3 {[%emt 0:04:43]} Qb6 {[%emt 0:13:26]} 20. a3 {[%emt 0:01:53]} Qb3 {[%emt 0:02:45]} 21. Rfe1 {[%emt 0:12:33]} Na5 {[%emt 0:05:25]} 22. Be2 {[%emt 0:08:22]} Rc8 {[%emt 0:20:21]} 23. Rb1 {[%emt 0:01:25]} Nc4 {[%emt 0:03:00]} 24. Qd5 {[%emt 0:01:44]} Qxc2 {[%emt 0:04:26]} 25. Bxc4 {[%emt 0:00:06]} Rc5 {[%emt 0:00:19]} 26. Qd3 {[%emt 0:01:10]} Qxd3 {[%emt 0:00:11]} 27. Bxd3 {[%emt 0:00:10]} d5 {[%emt 0:00:56]} 28. exd5 {[%emt 0:00:37]} 1/2-1/2